fUST/lending_fUST_20240529
["ID","MTS","AMOUNT","RATE_DAILY","PERIOD"]
[328155315,1716954647227,-629.25630311,0.00021917,2]
[328155316,1716954647237,-500.0,0.00021917,2]
[328155317,1716954647246,-372.85836576,0.00021917,2]
[328155318,1716954647257,-378.70089123,0.00021917,2]
[328155319,1716954647267,-630.55988465,0.00021917,2]
[328155320,1716954647277,-500.0,0.00021917,2]
[328155321,1716954647286,-513.98417287,0.00021917,2]
[328155322,1716954647295,-568.68,0.00021917,2]
[328155323,1716954647305,-510.73159369,0.00021917,2]
[328155324,1716954647315,-971.82,0.00021917,2]
[328155325,1716954647324,-512.56617458,0.00021917,2]
[328155326,1716954647339,-500.0,0.00021917,2]
[328155327,1716954647350,-500.0,0.00021917,2]
[328155328,1716954647359,-384.05927241,0.00021917,2]
[328155329,1716954647368,-500.0,0.00021917,2]
[328155330,1716954647378,-500.0,0.00021917,2]
[328155331,1716954647389,-943.16,0.00021917,2]
[328155332,1716954647398,-500.0,0.00021917,2]
[328155333,1716954647407,-510.74270416,0.00021917,2]
[328155334,1716954647417,-506.88994406,0.00021917,2]
[328155335,1716954647426,-500.0,0.00021917,2]
[328155336,1716954647437,-500.0,0.00021917,2]
[328155337,1716954647446,-500.0,0.00021917,2]
[328155338,1716954647456,-740.8,0.00021917,2]
[328155339,1716954647465,-500.0,0.00021917,2]
[328155340,1716954647474,-500.0,0.00021917,2]
[328155341,1716954647483,-507.40721838,0.00021917,2]
[328155342,1716954647493,-3118.27,0.00021917,2]
[328155343,1716954647503,-500.0,0.00021917,2]
[328155344,1716954647512,-500.0,0.00021917,2]
[328155345,1716954647522,-661.92,0.00021917,2]
[328155346,1716954647531,-206.93368057,0.00021917,2]
[328155347,1716954647540,-500.0,0.00021917,2]
[328155348,1716954647549,-500.0,0.00021917,2]
[328155349,1716954647559,-500.0,0.00021917,2]
[328155350,1716954647568,-508.48822437,0.00021917,2]
[328155351,1716954647577,-500.0,0.00021917,2]
[328155352,1716954647586,-4319.61,0.00021917,2]
[328155353,1716954647596,-500.0,0.00021917,2]
[328155354,1716954647606,-500.0,0.00021917,2]
[328155355,1716954647615,-514.29310895,0.00021917,2]
[328155356,1716954647624,-500.0,0.00021917,2]
[328155357,1716954647634,-1248.02,0.00021917,2]
[328155358,1716954647643,-500.0,0.00021917,2]
[328155359,1716954647653,-500.0,0.00021917,2]
[328155360,1716954647662,-3396.18,0.00021917,2]
[328155361,1716954647672,-508.76374325,0.00021917,2]
[328155362,1716954647681,-500.0,0.00021917,2]
[328155363,1716954647690,-500.0,0.00021917,2]
[328155364,1716954647701,-500.0,0.00021917,2]
[328155365,1716954647712,-500.0,0.00021917,2]
[328155366,1716954647721,-3098.21,0.00021917,2]
[328155367,1716954647731,-833.58,0.00021917,2]
[328155368,1716954647740,-500.0,0.00021917,2]
[328155369,1716954647750,-581.62,0.00021917,2]
[328155370,1716954647759,-500.0,0.00021917,2]
[328155371,1716954647768,-640.05,0.00021917,2]
[328155372,1716954647778,-1038.87,0.00021917,2]
[328155373,1716954647788,-500.0,0.00021917,2]
[328155374,1716954647797,-507.54098851,0.00021917,2]
[328155375,1716954647806,-500.0,0.00021917,2]
[328155376,1716954647815,-500.0,0.00021917,2]
[328155377,1716954647825,-512.01462302,0.00021917,2]
[328155378,1716954647834,-500.0,0.00021917,2]
[328155379,1716954647844,-500.0,0.00021917,2]
[328155380,1716954647853,-169.91888257,0.00021917,2]
[328155381,1716954647862,-500.0,0.00021917,2]
[328155382,1716954647872,-500.0,0.00021917,2]
[328155383,1716954647881,-500.0,0.00021917,2]
[328155384,1716954647890,-500.0,0.00021917,2]
[328155385,1716954647899,-1087.51,0.00021917,2]
[328155386,1716954647908,-500.0,0.00021917,2]
[328155387,1716954647917,-573.42,0.00021917,2]
[328155388,1716954647927,-500.0,0.00021917,2]
[328155389,1716954647936,-500.0,0.00021917,2]
[328155390,1716954647946,-500.0,0.00021917,2]
[328155391,1716954647955,-500.0,0.00021917,2]
[328155392,1716954647964,-507.04575459,0.00021917,2]
[328155393,1716954647973,-500.0,0.00021917,2]
[328155394,1716954647982,-500.0,0.00021917,2]
[328155395,1716954647992,-166.666666,0.00021918,2]
[328155396,1716954648001,-500.006,0.00021948,2]
[328155397,1716954648010,-155.08406064,0.00022,2]
[328155398,1716954648019,-880.0,0.00022,2]
[328155399,1716954648028,-512.50435245,0.00022191,2]
[328155400,1716954648037,-500.0,0.00022191,2]
[328155401,1716954648047,-500.0,0.00022191,2]
[328155402,1716954648055,-500.0,0.00022191,2]
[328155403,1716954648064,-568.86,0.00022191,2]
[328155404,1716954648074,-369.32871933,0.00022191,2]
[328155405,1716954648082,-500.0,0.00022191,2]
[328155406,1716954648091,-500.0,0.00022191,2]
[328155407,1716954648100,-500.0,0.00022191,2]
[328155408,1716954648109,-500.0,0.00022191,2]
[328155409,1716954648119,-500.0,0.00022191,2]
[328155410,1716954648128,-500.0,0.00022191,2]
[328155411,1716954648137,-500.0,0.00022191,2]
[328155412,1716954648146,-500.0,0.00022191,2]
[328155413,1716954648156,-611.49,0.00022191,2]
[328155414,1716954648165,-500.0,0.00022191,2]
[328155415,1716954648175,-500.0,0.00022191,2]
[328155416,1716954648185,-500.0,0.00022191,2]
[328155417,1716954648196,-500.0,0.00022191,2]
[328155418,1716954648208,-512.16113759,0.00022191,2]
[328155419,1716954648216,-568.68,0.00022191,2]
[328155420,1716954648225,-971.82,0.00022191,2]
[328155421,1716954648242,-500.0,0.00022191,2]
[328155422,1716954648255,-500.0,0.00022191,2]
[328155423,1716954648267,-943.16,0.00022191,2]
[328155424,1716954648277,-500.0,0.00022191,2]
[328155425,1716954648288,-512.21292969,0.00022191,2]
[328155426,1716954648298,-500.0,0.00022191,2]
[328155427,1716954648307,-500.0,0.00022191,2]
[328155428,1716954648318,-740.8,0.00022191,2]
[328155429,1716954648327,-500.0,0.00022191,2]
[328155430,1716954648338,-500.0,0.00022191,2]
[328155431,1716954648348,-3118.27,0.00022191,2]
[328155432,1716954648358,-500.0,0.00022191,2]
[328155433,1716954648369,-500.0,0.00022191,2]
[328155434,1716954648380,-661.92,0.00022191,2]
[328155435,1716954648390,-500.0,0.00022191,2]
[328155436,1716954648400,-514.65661806,0.00022191,2]
[328155437,1716954648410,-586.85870767,0.00022191,2]
[328155438,1716954648421,-414.15467927,0.00022191,2]
[328155439,1716954648431,-4319.61,0.00022191,2]
[328155440,1716954648440,-500.0,0.00022191,2]
[328155441,1716954648449,-500.0,0.00022191,2]
[328155442,1716954648653,-101.89196467,0.00022191,2]
[328155443,1716954650111,-150.00281572,0.00022191,2]
[328155454,1716955648163,-150.0,0.00019817,2]
[328155455,1716955648183,-1307.9878028,0.00020912,2]
[328155456,1716955651089,-4006.71798143,0.00020912,2]
[328155457,1716955651108,-155.37029912,0.00020912,2]
[328155458,1716955651129,-157.92997847,0.00020912,2]
[328155490,1716955831860,-570.87837969,0.00020912,2]
[328155492,1716955831872,-140.90520623,0.00020912,2]
[328155495,1716955831881,-413.67690844,0.00020912,2]
[328155496,1716955831891,-81.21276416,0.00020913,2]
[328155497,1716955831914,-1007.88974121,0.00020913,2]
[328155540,1716955837860,-63.71910819,0.00020913,2]
[328155542,1716955837870,-195.17333009,0.00021816,2]
[328155579,1716955840756,-120.44319721,0.00021816,2]
[328155580,1716955840784,-1674.79371648,0.00021816,2]
[328155593,1716955843121,-488.69400078,0.00021816,2]
[328155594,1716955843133,-1121.17793541,0.00021816,2]
[328155595,1716955843143,-160.61319911,0.00021817,2]
[328155596,1716955843152,-337.83913121,0.00021817,2]
[328155597,1716955843162,-500.0,0.00021916,2]
[328155598,1716955843171,-561.30163032,0.00021916,2]
[328155599,1716955843336,-500.0,0.00021916,2]
[328155600,1716955843354,-500.0,0.00021916,2]
[328155601,1716955843364,-500.0,0.00021916,2]
[328155602,1716955843373,-500.0,0.00021916,2]
[328155603,1716955843382,-500.0,0.00021916,2]
[328155604,1716955843391,-500.0,0.00021916,2]
[328155605,1716955843400,-500.0,0.00021916,2]
[328155606,1716955843410,-500.0,0.00021916,2]
[328155607,1716955843420,-500.0,0.00021916,2]
[328155608,1716955843429,-500.0,0.00021916,2]
[328155609,1716955843438,-500.0,0.00021916,2]
[328155610,1716955843447,-500.0,0.00021916,2]
[328155611,1716955843457,-539.55438017,0.00021916,2]
[328155612,1716955843466,-500.0,0.00021916,2]
[328155613,1716955843476,-500.0,0.00021916,2]
[328155614,1716955843485,-500.0,0.00021916,2]
[328155615,1716955843494,-500.0,0.00021917,2]
[328155616,1716955843503,-560.53,0.00021917,2]
[328155617,1716955843512,-501.21393469,0.00021917,2]
[328155618,1716955843521,-515.97489684,0.00021917,2]
[328155619,1716955843530,-500.0,0.00021917,2]
[328155620,1716955843540,-500.0,0.00021917,2]
[328155621,1716955843548,-500.0,0.00021917,2]
[328155622,1716955843557,-500.0,0.00021917,2]
[328155623,1716955843566,-383.94717772,0.00021917,2]
[328155624,1716955843576,-500.0,0.00021917,2]
[328155625,1716955843585,-500.0,0.00021917,2]
[328155626,1716955843595,-500.0,0.00021917,2]
[328155627,1716955843604,-628.95021828,0.00021917,2]
[328155628,1716955843613,-500.0,0.00021917,2]
[328155629,1716955843622,-500.0,0.00021917,2]
[328155630,1716955843631,-505.73182948,0.00021917,2]
[328155631,1716955843640,-331.92835234,0.00021917,2]
[328155632,1716955843649,-500.0,0.00021917,2]
[328155633,1716955843658,-500.0,0.00021917,2]
[328155634,1716955843668,-500.0,0.00021917,2]
[328155635,1716955843677,-343.45737097,0.00021917,2]
[328155636,1716955843686,-521.29,0.00021917,2]
[328155637,1716955843695,-519.76994347,0.00021917,2]
[328155644,1716956829174,-151.0,0.00020324,3]
[328155645,1716956829196,-845.14813312,0.00020912,2]
[328155646,1716956829217,-157.2100334,0.00020912,2]
[328155647,1716956829243,-758.41658575,0.00020913,2]
[328155648,1716956829265,-160.61319909,0.00021817,2]
[328155649,1716956829285,-267.152201,0.00021917,7]
[328155650,1716956853105,-1758.69264426,0.00021917,7]
[328155651,1716956853126,-500.0,0.00021917,2]
[328155652,1716956853150,-500.0,0.00021917,2]
[328155653,1716956853169,-500.0,0.00021917,2]
[328155654,1716956853189,-500.0,0.00021917,2]
[328155655,1716956853210,-500.0,0.00021917,2]
[328155656,1716956853232,-500.0,0.00021917,2]
[328155657,1716956853254,-426.12104313,0.00021917,2]
[328155658,1716956853274,-557.38,0.00021917,2]
[328155659,1716956853294,-627.43303171,0.00021917,2]
[328155660,1716956853314,-500.0,0.00021917,2]
[328155661,1716956853334,-512.56552064,0.00021917,2]
[328155662,1716956853354,-613.38,0.00021917,2]
[328155663,1716956853375,-508.67087428,0.00021917,2]
[328155664,1716956853395,-500.0,0.00021917,2]
[328155665,1716956853415,-500.0,0.00021917,2]
[328155666,1716956853434,-186.97299233,0.00021917,2]
[328155667,1716956853455,-521.46,0.00021917,2]
[328155668,1716956853475,-500.0,0.00021917,2]
[328155669,1716956853495,-500.0,0.00021917,2]
[328155670,1716956853521,-500.0,0.00021917,2]
[328155671,1716956853541,-500.0,0.00021917,2]
[328155672,1716956853563,-500.0,0.00021917,2]
[328155673,1716956853583,-86.04754897,0.00021917,2]
[328155682,1716957032194,-160.61319909,0.00021899,2]
[328155683,1716957032205,-413.95245103,0.00021917,2]
[328155684,1716957032216,-500.0,0.00021917,2]
[328155685,1716957032226,-500.0,0.00021917,2]
[328155686,1716957032237,-500.0,0.00021917,2]
[328155687,1716957032247,-500.0,0.00021917,2]
[328155688,1716957032257,-500.0,0.00021917,2]
[328155689,1716957032268,-500.0,0.00021917,2]
[328155690,1716957032279,-500.0,0.00021917,2]
[328155691,1716957032288,-869.18,0.00021917,2]
[328155692,1716957032297,-235.77043503,0.00021917,2]
[328155693,1716957032305,-509.96905747,0.00021917,2]
[328155694,1716957032314,-500.0,0.00021917,2]
[328155695,1716957032323,-864.57,0.00021917,2]
[328155696,1716957032332,-500.0,0.00021917,2]
[328155697,1716957032341,-549.53,0.00021917,2]
[328155698,1716957032350,-500.0,0.00021917,2]
[328155699,1716957032359,-679.06,0.00021917,2]
[328155700,1716957032369,-514.78,0.00021917,2]
[328155701,1716957032378,-500.0,0.00021917,2]
[328155702,1716957032388,-500.0,0.00021917,2]
[328155703,1716957032397,-500.0,0.00021917,2]
[328155704,1716957032407,-2858.42,0.00021917,2]
[328155705,1716957032416,-606.76,0.00021917,2]
[328155706,1716957032425,-500.0,0.00021917,2]
[328155707,1716957032434,-500.0,0.00021917,2]
[328155708,1716957032444,-500.0,0.00021917,2]
[328155709,1716957032453,-500.0,0.00021917,2]
[328155710,1716957032462,-500.0,0.00021917,2]
[328155711,1716957032471,-500.0,0.00021917,2]
[328155712,1716957032481,-1196.02,0.00021917,2]
[328155713,1716957032490,-4153.43,0.00021917,2]
[328155714,1716957032499,-359.4135798,0.00021917,2]
[328155715,1716957032508,-500.0,0.00021917,2]
[328155716,1716957032517,-534.16,0.00021917,2]
[328155717,1716957032526,-500.0,0.00021917,2]
[328155718,1716957032538,-3254.67,0.00021917,2]
[328155719,1716957032547,-500.0,0.00021917,2]
[328155720,1716957032555,-500.0,0.00021917,2]
[328155721,1716957032565,-798.85,0.00021917,2]
[328155722,1716957032573,-500.0,0.00021917,2]
[328155723,1716957032582,-1268.98,0.00021917,2]
[328155724,1716957032591,-2969.12,0.00021917,2]
[328155725,1716957032600,-500.0,0.00021917,2]
[328155726,1716957032609,-500.0,0.00021917,2]
[328155727,1716957032619,-500.0,0.00021917,2]
[328155728,1716957032627,-500.0,0.00021917,2]
[328155729,1716957032637,-500.0,0.00021917,2]
[328155730,1716957032646,-587.82,0.00021917,2]
[328155731,1716957032655,-500.0,0.00021917,2]
[328155732,1716957032664,-500.0,0.00021917,2]
[328155733,1716957032674,-1042.2,0.00021917,2]
[328155734,1716957032683,-500.0,0.00021917,2]
[328155735,1716957032692,-500.0,0.00021917,2]
[328155736,1716957032701,-512.82281399,0.00021917,2]
[328155737,1716957032710,-166.666666,0.00021918,2]
[328155738,1716957032719,-160.49026021,0.00021969,2]
[328155739,1716957032728,-240.55784157,0.00021998,2]
[328155740,1716957032738,-500.0,0.00021998,2]
[328155741,1716957032747,-500.0,0.00021998,2]
[328155742,1716957032755,-500.0,0.00021998,2]
[328155743,1716957032764,-879.34632213,0.00021998,7]
[328155744,1716957032774,-6969.49731105,0.00022,2]
[328155745,1716957032785,-282.0,0.000221,2]
[328155746,1716957032794,-1886.173647,0.000221,2]
[328155747,1716957032803,-461.41671968,0.00022191,2]
[328155748,1716957032812,-500.0,0.00022191,2]
[328155749,1716957032821,-500.0,0.00022191,2]
[328155750,1716957032831,-500.0,0.00022191,2]
[328155751,1716957032840,-521.46,0.00022191,2]
[328155752,1716957032850,-500.0,0.00022191,2]
[328155753,1716957032859,-500.0,0.00022191,2]
[328155754,1716957032868,-484.41693302,0.00022191,2]
[328155755,1716957032877,-500.0,0.00022191,2]
[328155756,1716957032887,-500.0,0.00022191,2]
[328155757,1716957032896,-500.0,0.00022191,2]
[328155758,1716957032905,-500.0,0.00022191,2]
[328155759,1716957032915,-500.0,0.00022191,2]
[328155760,1716957032924,-500.0,0.00022191,2]
[328155761,1716957032933,-500.0,0.00022191,2]
[328155762,1716957032943,-500.0,0.00022191,2]
[328155763,1716957032951,-500.0,0.00022191,2]
[328155764,1716957032961,-869.18,0.00022191,2]
[328155765,1716957032970,-500.0,0.00022191,2]
[328155766,1716957032979,-864.57,0.00022191,2]
[328155767,1716957032988,-500.0,0.00022191,2]
[328155768,1716957032998,-549.53,0.00022191,2]
[328155769,1716957033008,-500.0,0.00022191,2]
[328155770,1716957033017,-679.06,0.00022191,2]
[328155771,1716957033027,-514.78,0.00022191,2]
[328155772,1716957033037,-500.0,0.00022191,2]
[328155773,1716957033047,-500.0,0.00022191,2]
[328155774,1716957033056,-646.42711397,0.00022191,2]
[328155775,1716957033066,-2858.42,0.00022191,2]
[328155776,1716957033075,-606.76,0.00022191,2]
[328155777,1716957033084,-500.0,0.00022191,2]
[328155778,1716957033093,-500.0,0.00022191,2]
[328155779,1716957033103,-500.0,0.00022191,2]
[328155780,1716957033113,-500.0,0.00022191,2]
[328155781,1716957033122,-500.0,0.00022191,2]
[328155782,1716957033131,-500.0,0.00022191,2]
[328155783,1716957033140,-1196.02,0.00022191,2]
[328155784,1716957033150,-4153.43,0.00022191,2]
[328155785,1716957033158,-267.21523539,0.00022191,2]
[328155804,1716957039023,-503.73,0.00021917,2]
[328155805,1716957039034,-63.8230138,0.00021998,2]
[328155836,1716957056029,273.37336231,9.9e-05,2]
[328155837,1716957063970,273.37336231,9.9e-05,2]
[328155838,1716957072849,273.37336231,9.9e-05,2]
[328155839,1716957080760,135.9424959,9.9e-05,2]
[328155840,1716957080781,137.43086641,9.9e-05,2]
[328155841,1716957088903,235.14904931,9.9e-05,2]
[328155850,1716957370877,12476.56144253,9.9e-05,2]
[328155860,1716957931124,-161.44735672,9.892e-05,2]
[328155861,1716958041090,-1871.01679575,9.888e-05,2]
[328155862,1716958041110,-131.93682664,9.889e-05,2]
[328155863,1716958146094,-758.57976486,9.891e-05,2]
[328155864,1716958146115,-676.03150202,9.892e-05,2]
[328155865,1716958146135,-795.71870318,9.897e-05,2]
[328155866,1716958146154,-3684.20913349,9.9e-05,2]
[328155867,1716958146175,-1058.07910375,0.00012319,2]
[328155868,1716958147096,-9379.59761175,0.00012319,2]
[328155869,1716958147117,-1871.01679575,0.00015217,2]
[328155870,1716958147137,-24900.0,0.00015218,2]
[328155871,1716958147158,-250.0,0.00015361,2]
[328155872,1716958147181,-321.75427656,0.0001954,2]
[328155873,1716958147202,-1987.13539394,0.00019574,2]
[328155874,1716958147221,-553.5418936,0.00019574,2]
[328155875,1716958147243,-303.40308856,0.00019574,2]
[328155876,1716958147263,-155.14029157,0.00019574,2]
[328155877,1716958147282,-155.62535437,0.00019574,2]
[328155878,1716958147301,-1594.03770151,0.00019574,2]
[328155879,1716958147320,-397.4857636,0.00019574,2]
[328155880,1716958147340,-266.4208833,0.00019574,2]
[328155881,1716958147359,-633.51419468,0.00019575,2]
[328155882,1716958147382,-6687.62309829,0.00019575,2]
[328155912,1716958238792,-758.57976486,0.00019998,2]
[328155913,1716958238801,-1697.46081247,0.00019999,2]
[328155914,1716958238811,-1442.55238452,0.0002,2]
[328155915,1716958238821,-155.3131152,0.0002,2]
[328155916,1716958238830,-151.0,0.00020312,3]
[328155917,1716958238839,-154.87609912,0.00020342,2]
[328155918,1716958238850,-151.0,0.00020547,3]
[328155919,1716958238861,-151.0,0.00020783,3]
[328155920,1716958238870,-340.88630035,0.00020808,2]
[328155921,1716958238879,-337.83913121,0.00020808,2]
[328155922,1716958238889,-526.93780165,0.00020891,2]
[328155923,1716958238898,-157.44,0.00020902,3]
[328155924,1716958238907,-472.36,0.00020902,3]
[328155925,1716958238916,-314.89,0.00020904,3]
[328155926,1716958238925,-499.99999999,0.00020907,2]
[328155927,1716958238934,-409.91238025,0.00020907,2]
[328155928,1716958238943,-500.0,0.00020907,2]
[328155929,1716958238952,-500.0,0.00020907,2]
[328155930,1716958238961,-500.0,0.00020907,2]
[328155931,1716958238970,-500.0,0.00020907,2]
[328155932,1716958238980,-394.45945538,0.00020907,2]
[328155937,1716958242648,-105.54054462,0.00020907,2]
[328155938,1716958242660,-500.0,0.00020907,2]
[328155939,1716958242670,-500.0,0.00020907,2]
[328155940,1716958242682,-500.0,0.00020907,2]
[328155941,1716958242692,-500.0,0.00020907,2]
[328155942,1716958242703,-500.0,0.00020907,2]
[328155943,1716958242714,-500.0,0.00020907,2]
[328155944,1716958242727,-500.0,0.00020907,2]
[328155945,1716958242737,-500.0,0.00020907,2]
[328155946,1716958242749,-500.0,0.00020907,2]
[328155947,1716958242761,-500.0,0.00020907,2]
[328155948,1716958242773,-500.0,0.00020907,2]
[328155949,1716958242784,-500.0,0.00020907,2]
[328155950,1716958242797,-571.03645297,0.00020907,2]
[328155951,1716958242809,-500.0,0.00020907,2]
[328155953,1716958242818,-500.0,0.00020907,2]
[328155954,1716958242828,-500.0,0.00020907,2]
[328155955,1716958242838,-500.0,0.00020907,2]
[328155956,1716958242848,-500.0,0.00020907,2]
[328155957,1716958242858,-500.0,0.00020907,2]
[328155958,1716958242869,-500.0,0.00020907,2]
[328155959,1716958242882,-500.0,0.00020907,2]
[328155960,1716958242895,-500.0,0.00020907,2]
[328155961,1716958242907,-500.0,0.00020907,2]
[328155962,1716958242918,-500.0,0.00020907,2]
[328155963,1716958242930,-500.0,0.00020907,2]
[328155964,1716958242942,-500.0,0.00020907,2]
[328155967,1716958242952,-500.0,0.00020907,2]
[328155969,1716958242962,-500.0,0.00020907,2]
[328155970,1716958242972,-500.0,0.00020907,2]
[328155971,1716958242983,-500.0,0.00020907,2]
[328155972,1716958242995,-223.44958693,0.00020907,2]
[328155973,1716958243006,-500.0,0.00020907,2]
[328155974,1716958243017,-500.0,0.00020907,2]
[328155975,1716958243028,-500.0,0.00020907,2]
[328155976,1716958243039,-500.0,0.00020907,2]
[328155977,1716958243050,-500.0,0.00020907,2]
[328155978,1716958243062,-500.0,0.00020907,2]
[328155979,1716958243072,-300.60369023,0.00020907,2]
[328155980,1716958243083,-500.0,0.00020907,2]
[328155981,1716958243093,-500.0,0.00020907,2]
[328155982,1716958243104,-500.0,0.00020907,2]
[328155983,1716958243115,-500.0,0.00020907,2]
[328155984,1716958243125,-500.0,0.00020907,2]
[328155985,1716958243135,-500.0,0.00020907,2]
[328155986,1716958243145,-500.0,0.00020907,2]
[328155987,1716958243156,-500.0,0.00020907,2]
[328155988,1716958243166,-500.0,0.00020907,2]
[328155989,1716958243176,-500.0,0.00020907,2]
[328155990,1716958243187,-500.0,0.00020907,2]
[328155991,1716958243197,-506.21389579,0.00020907,2]
[328155992,1716958243206,-500.0,0.00020907,2]
[328155993,1716958243217,-500.0,0.00020907,2]
[328155994,1716958243227,-500.0,0.00020907,2]
[328155995,1716958243237,-500.0,0.00020907,2]
[328155996,1716958243248,-650.0,0.00020907,2]
[328155998,1716958243258,-500.0,0.00020907,2]
[328156000,1716958243268,-500.0,0.00020907,2]
[328156001,1716958243278,-500.0,0.00020907,2]
[328156003,1716958243288,-500.0,0.00020907,2]
[328156005,1716958243298,-500.0,0.00020907,2]
[328156007,1716958243309,-500.0,0.00020907,2]
[328156009,1716958243319,-500.0,0.00020907,2]
[328156011,1716958243330,-500.0,0.00020907,2]
[328156013,1716958243340,-500.0,0.00020907,2]
[328156015,1716958243351,-500.0,0.00020907,2]
[328156017,1716958243362,-500.0,0.00020907,2]
[328156018,1716958243372,-1795.771845,0.0002091,2]
[328156019,1716958243382,-1795.771845,0.0002091,2]
[328156020,1716958243392,-235.039353,0.0002091,2]
[328156021,1716958243402,-194.857525,0.0002091,2]
[328156022,1716958243412,-194.857525,0.0002091,2]
[328156023,1716958243423,-151.0,0.0002091,2]
[328156024,1716958243433,-151.0,0.0002091,2]
[328156025,1716958243443,-211.99205214,0.00020912,2]
[328156027,1716958243454,-4506.48240629,0.00020912,2]
[328156028,1716958243464,-10525.98680899,0.00020912,2]
[328156029,1716958243474,-155.09261085,0.00020912,2]
[328156030,1716958243484,-261.34125049,0.00020912,2]
[328156031,1716958243495,-151.0,0.00020912,2]
[328156032,1716958243505,-151.0,0.00020912,2]
[328156033,1716958243515,-151.0,0.00020912,2]
[328156034,1716958243525,-151.0,0.00020912,2]
[328156035,1716958243535,-151.0,0.00020912,2]
[328156036,1716958243545,-151.0,0.00020912,2]
[328156037,1716958243559,-151.0,0.00020912,2]
[328156038,1716958243570,-1121.17793541,0.00021,2]
[328156039,1716958243580,-151.0,0.00021018,3]
[328156040,1716958243590,-340.88630033,0.00021129,2]
[328156041,1716958243602,-151.0,0.00021253,3]
[328156042,1716958243612,-340.88630033,0.0002145,2]
[328156043,1716958243622,-151.0,0.00021488,3]
[328156044,1716958243633,-340.88630033,0.0002177,2]
[328156045,1716958243644,-637.11298106,0.00021917,7]
[328156047,1716958243655,-206.08966687,0.00021917,2]
[328156048,1716958243665,-500.0,0.00021917,2]
[328156049,1716958243675,-500.0,0.00021917,2]
[328156050,1716958243685,-500.0,0.00021917,2]
[328156052,1716958243696,-500.0,0.00021917,2]
[328156053,1716958243707,-500.0,0.00021917,2]
[328156054,1716958243717,-500.0,0.00021917,2]
[328156055,1716958243729,-383.94717772,0.00021917,2]
[328156056,1716958243740,-500.0,0.00021917,2]
[328156057,1716958243750,-151.0,0.00021917,2]
[328156058,1716958243760,-628.95021828,0.00021917,2]
[328156059,1716958243770,-500.0,0.00021917,2]
[328156061,1716958243780,-517.63,0.00021917,2]
[328156062,1716958243791,-152.784528,0.00021917,2]
[328156063,1716958243801,-505.73182948,0.00021917,2]
[328156064,1716958243812,-500.0,0.00021917,2]
[328156065,1716958243822,-500.0,0.00021917,2]
[328156066,1716958243831,-500.0,0.00021917,2]
[328156067,1716958243842,-501.21393469,0.00021917,2]
[328156068,1716958243851,-331.92835234,0.00021917,2]
[328156069,1716958243861,-159.943537,0.00021917,2]
[328156070,1716958243870,-500.0,0.00021917,2]
[328156071,1716958243879,-154.331064,0.00021917,2]
[328156072,1716958243888,-818.4,0.00021917,2]
[328156073,1716958244076,-151.0,0.00021917,2]
[328156074,1716958244091,-151.0,0.00021917,2]
[328156076,1716958244102,-792.52,0.00021917,2]
[328156077,1716958244112,-500.0,0.00021917,2]
[328156078,1716958244121,-1795.771845,0.00021917,2]
[328156079,1716958244130,-500.0,0.00021917,2]
[328156080,1716958244140,-1795.771845,0.00021917,2]